Cogmind - Beta 14 @@@ ROGUE MODE // 2024.10.11 @ 08:28:27 Player: Minty Result: Destroyed by G-34 Mercenary with Small Laser Performance ------------- Evolutions (0) 0 Regions Visited (4) 800 Robots Destroyed (7) 35 Value Destroyed (179) 179 Prototype IDs (23) 460 Alien Tech Used (0) 0 Bonus (300) 300 TOTAL SCORE: 1774 Bonus ------- Aligned with FarCom 300 Cogmind --------- Core Integrity 0/250 Matter 270/300 Energy 230/250 System Corruption 0% Temperature Cool (6) Movement Rolling (90) Location -9/Mines Parts ------- > --- POWER (1) -------- Ion Engine > --- PROPULSION (2) --- Wheel Compact Wheel > --- UTILITY (2) ------ Small Storage Unit > --- WEAPON (2) ------- AWS/Gauss > --- INVENTORY (8) ---- Reinforced Deuterium Engine Fission Core Fission Core Makeshift Axe Peak State ------------ > --- POWER ------------ Ion Engine > --- PROPULSION ------- Wheel Compact Wheel > --- UTILITY ---------- Small Storage Unit > --- WEAPON ----------- Makeshift Axe > --- INVENTORY -------- Reinforced Deuterium Engine Fission Core Fission Core AWS/Gauss [Rating: 11] Favorites ----------- Power Light Ion Engine Engine Light Ion Engine Propulsion Light Treads Treads Light Treads Leg Aluminum Leg Wheel Wheel Utility Small Storage Unit Storage Small Storage Unit Weapon Assault Rifle Ballistic Gun Assault Rifle Slashing Weapon Makeshift Axe Build | -11 -10 -10 -10 -9 ------- Run | Yrd Mat Min Exi Min Slots Evolved . | . . . . . Power . | . . . . . Propulsion . | . . . . . Utility . | . . . . . Weapon . | . . . . . Parts Attached 12 | . 3 6 2 1 Power 1 | . . . 1 . Engine 1 | . . . 1 . Core . | . . . . . Reactor . | . . . . . Propulsion 7 | . 3 4 . . Treads 2 | . . 2 . . Leg . | . . . . . Wheel 5 | . 3 2 . . Hover . | . . . . . Flight . | . . . . . Utility 1 | . . . 1 . Device . | . . . . . Storage 1 | . . . 1 . Processor . | . . . . . Hackware . | . . . . . Protection . | . . . . . Artifact . | . . . . . Weapon 3 | . . 2 . 1 Energy Gun . | . . . . . Energy Cannon . | . . . . . Ballistic Gun 2 | . . 1 . 1 Ballistic Cannon . | . . . . . Launcher . | . . . . . Special Weapon . | . . . . . Impact Weapon . | . . . . . Slashing Weapon 1 | . . 1 . . Piercing Weapon . | . . . . . Special Melee Weapon . | . . . . . Unidentified Prototypes . | . . . . . Parts Lost 7 | . 1 6 . . Power 1 | . . 1 . . Propulsion 4 | . 1 3 . . Utility . | . . . . . Weapon 2 | . . 2 . . Highest Loss Streak 4 | . 1 4 . . To Critical Strikes . | . . . . . Average Slot Usage (%) 57 | . 85 43 59 . Engine 6 | . 14 2 8 . Treads 8 | . . 16 . . Leg 6 | . 26 . . . Wheel 11 | . 1 9 28 . Storage 6 | . 14 2 8 . Ballistic Gun 9 | . 28 5 . . Slashing Weapon 7 | . . 7 14 . Peak Build Rating 11 | . 6 6 11 11 Average Rating 6 | . 5 4 9 10 On Entrance 7 | 6 6 6 6 11 Naked Turns . | . . . . . Heaviest Build 13 | 12 12 12 13 13 Greatest Support 26 | 20 26 20 26 26 Greatest Overweight (x) . | . . . . . Average Overweight (x) . | . . . . . Largest Inventory Capacity 8 | . 8 8 8 8 Average Capacity 6 | . 8 5 6 8 Most Carried 6 | . 6 6 5 6 Average Carried 5 | . 5 4 4 5 Final Capacity 8 | 8 8 5 8 8 Final Carried 6 | 6 6 3 5 4 Class Distribution -------------------- 100% | Mutant Dominant Class ---------------- Mutant | -10/Materials Mutant | -10/Mines Mutant | -10/Exiles Mutant | -9/Mines Resources | -11 -10 -10 -10 -9 ----------- Run | Yrd Mat Min Exi Min Matter Collected 493 | 200 80 213 . . Remotely . | . . . . . Salvage Created 345 | . 169 176 . . Parts 18 | . 10 8 . . Haulers Intercepted . | . . . . . Recyclers Shooed . | . . . . . Parts Field Recycled . | . . . . . Retrieved Matter . | . . . . . Parts Self-Destructed . | . . . . . Prevented . | . . . . . Kills | -11 -10 -10 -10 -9 ------- Run | Yrd Mat Min Exi Min Combat Hostiles Destroyed 15 | . 4 11 . . Melee 4 | . . 4 . . Guns 11 | . 4 7 . . Classes Destroyed 3 | . 1 2 . . Swarmer 3 | . . 3 . . Grunt 4 | . 4 . . . Assembled 8 | . . 8 . . Best Kill Streak 4 | . 2 4 . . Combat Bots Only 4 | . 2 4 . . Max Kills in Single Turn 1 | . 1 1 . . Gunslinging . | . . . . . Exploded . | . . . . . Melee 1 | . . 1 . . Uniques/NPCs Destroyed . | . . . . . Combat | -11 -10 -10 -10 -9 -------- Run | Yrd Mat Min Exi Min Hostile Shots Fired 127 | . 49 71 . 7 Missed 38 | . 12 23 . 3 Damage Taken 1165 | . 441 634 . 90 Core 257 | . 89 124 . 44 Absorbed by Shields . | . . . . . Core Remaining (%) 100 | 100 . . . . Volleys Fired 48 | . 23 25 . . Largest 2 | . 2 2 . . Hottest 40 | . 40 40 . . Shots Fired 76 | . 46 30 . . Gun 76 | . 46 30 . . Cannon . | . . . . . Launcher . | . . . . . Special . | . . . . . Kinetic 76 | . 46 30 . . Thermal . | . . . . . Explosive . | . . . . . Electromagnetic . | . . . . . Robot Hit Streak 6 | . 6 6 . . Robot Miss Streak 6 | . 6 4 . . Penetration Max . | . . . . . Secondary Targets 3 | . 2 1 . . Max Gunslinging Chain 1 | . 1 1 . . Shots Hit Robots 48 | . 25 22 . 1 Core Hits 25 | . 10 15 . . Critical Kills . | . . . . . Critical Parts Destroyed . | . . . . . Critical Strikes . | . . . . . Melee Attacks 12 | . . 11 . 1 Impact . | . . . . . Slashing 12 | . . 11 . 1 Piercing . | . . . . . Sneak Attacks 1 | . . 1 . . Combat Hostiles . | . . . . . Follow-up Attacks . | . . . . . Damage Inflicted 841 | . 325 486 . 30 Guns 532 | . 325 207 . . Cannons . | . . . . . Explosions . | . . . . . Melee 309 | . . 279 . 30 Ramming . | . . . . . Kinetic 532 | . 325 207 . . Thermal . | . . . . . Explosive . | . . . . . Electromagnetic . | . . . . . Impact . | . . . . . Slashing 309 | . . 279 . 30 Piercing . | . . . . . Highest Corruption . | . . . . . Average Corruption . | . . . . . Corruption Purged . | . . . . . Corruption Blocked . | . . . . . Overload Shots . | . . . . . Overflow Damage 66 | . . 66 . . Projectiles . | . . . . . Explosions . | . . . . . Melee 66 | . . 66 . . Knockbacks . | . . . . . Impact . | . . . . . Kinetic . | . . . . . Secondary . | . . . . . Self-Inflicted Damage . | . . . . . Shots . | . . . . . Rammed . | . . . . . Targets Rammed . | . . . . . Kicked . | . . . . . Crushed . | . . . . . Highest Temperature 9 | . 9 . . . Average Temperature 4 | . 4 . . . Received Heat Transfer 398 | . 246 140 . 12 Siege Activations . | . . . . . Robots Corrupted . | . . . . . Combat Hostiles . | . . . . . Parts Fried . | . . . . . Impact Corruptions . | . . . . . Robots Melted . | . . . . . Combat Hostiles . | . . . . . Parts Melted . | . . . . . Heat Transferred . | . . . . . Parts Sabotaged . | . . . . . Parts Stolen . | . . . . . Parts Stripped . | . . . . . Power Chain Reactions . | . . . . . Alert | -11 -10 -10 -10 -9 ------- Run | Yrd Mat Min Exi Min Peak Influence 128 | . 122 128 . . Initial 43 | . . 43 . . Average 89 | . 55 106 . . Maximum Alert Level . | . . . . . Low Security (%) 100 | . 100 100 . 100 Level 1 . | . . . . . Level 2 . | . . . . . Level 3 . | . . . . . Level 4 . | . . . . . Level 5 . | . . . . . High Security . | . . . . . Max Security . | . . . . . Squads Dispatched 1 | . 1 . . . Investigation . | . . . . . Extermination . | . . . . . Reinforcement 1 | . 1 . . . Assault . | . . . . . Garrison . | . . . . . Intercept . | . . . . . Searches Triggered . | . . . . . Construction Impeded . | . . . . . Haulers Reinforced . | . . . . . Active Scanning Responses . | . . . . . Cargo Convoy Interrupts . | . . . . . Stealth | -11 -10 -10 -10 -9 --------- Run | Yrd Mat Min Exi Min Distress Signals 2 | . 2 . . . Communications Jammed . | . . . . . Distress Signals . | . . . . . Times Spotted 41 | . 9 29 . 3 Peak Tracking Total 20 | . 4 20 . 3 Tactical Retreats 4 | . . 4 . . Traps | -11 -10 -10 -10 -9 ------- Run | Yrd Mat Min Exi Min Traps Triggered . | . . . . . Indirectly . | . . . . . Trap Hack Attempts . | . . . . . Triggered . | . . . . . Disarmed . | . . . . . Reprogrammed . | . . . . . Reused . | . . . . . Traps Extracted . | . . . . . Installed 1 | . . 1 . . Triggered . | . . . . . Machines | -11 -10 -10 -10 -9 ---------- Run | Yrd Mat Min Exi Min Machines Disabled . | . . . . . Max in Single Turn . | . . . . . Machines Repaired . | . . . . . Machines Dismantled . | . . . . . Machines Sabotaged . | . . . . . Overloaded Fab Kills . | . . . . . Hacking | -11 -10 -10 -10 -9 --------- Run | Yrd Mat Min Exi Min Machines Accessed 5 | . 3 . 2 . Terminals 2 | . 2 . . . Fabricators . | . . . . . Repair Stations . | . . . . . Recycling Units 1 | . 1 . . . Scanalyzers . | . . . . . Garrison Access . | . . . . . Total Hacks 11 | . 9 . 2 . Successful 6 | . 4 . 2 . Failed 5 | . 5 . . . Catastrophic 2 | . 2 . . . Database Lockouts . | . . . . . Manual 39 | . 8 . 31 . Terminals 6 | . 6 . . . Fabricators . | . . . . . Repair Stations . | . . . . . Recycling Units 3 | . 3 . . . Scanalyzers . | . . . . . Garrison Access . | . . . . . Terminal Hacks 2 | . . . 2 . Record 1 | . . . 1 . Derelict Proto ID Bank 1 | . . . 1 . Fabricator Hacks . | . . . . . Repair Station Hacks . | . . . . . Recycling Unit Hacks 1 | . 1 . . . Report Inventory 1 | . 1 . . . Scanalyzer . | . . . . . Garrison Access Hacks . | . . . . . Unauthorized Hacks 3 | . 3 . . . Terminals 3 | . 3 . . . Botnet 2 | . 2 . . . Operators 1 | . 1 . . . Fabricators . | . . . . . Repair Stations . | . . . . . Recycling Units . | . . . . . Scanalyzers . | . . . . . Garrison Access . | . . . . . Data Cores Recovered . | . . . . . Used . | . . . . . Hacking Detections 3 | . 3 . . . Full Trace Events 2 | . 2 . . . Feedback Events . | . . . . . Feedback Blocked . | . . . . . Robot Schematics Acquired . | . . . . . Robots Built . | . . . . . Authchips . | . . . . . Time . | . . . . . Total Robot Build Rating . | . . . . . Part Schematics Acquired . | . . . . . Parts Built . | . . . . . Authchips . | . . . . . Time . | . . . . . Total Part Build Rating . | . . . . . Parts Repaired . | . . . . . Time . | . . . . . Parts Recycled . | . . . . . Recycled Matter . | . . . . . Retrieved Matter . | . . . . . Retrieved Components . | . . . . . Parts Scanalyzed . | . . . . . Part Schematics Acquired . | . . . . . Parts Damaged . | . . . . . Bothacking | -11 -10 -10 -10 -9 ------------ Run | Yrd Mat Min Exi Min Used RIF Installer . | . . . . . Robots Hacked . | . . . . . Non-combat . | . . . . . Combat . | . . . . . Robot Hacks Applied . | . . . . . Relay Couplers Released . | . . . . . Fabnet Peak Effective % . | . . . . . Robots Rewired . | . . . . . Allies Hacked . | . . . . . Hacks Repelled . | . . . . . Allies | -11 -10 -10 -10 -9 -------- Run | Yrd Mat Min Exi Min Total Allies . | . . . . . Largest Group . | . . . . . Highest-Rated Group . | . . . . . Highest-Rated Ally . | . . . . . Total Orders . | . . . . . Ally Attacks . | . . . . . Total Damage . | . . . . . Kills . | . . . . . Allies Corrupted . | . . . . . Allies Melted . | . . . . . Intel | -11 -10 -10 -10 -9 ------- Run | Yrd Mat Min Exi Min Robot Analysis Total . | . . . . . Derelict Logs Recovered 1 | . . 1 . . Drone Launches . | . . . . . Drone Recoveries . | . . . . . Exploration | -11 -10 -10 -10 -9 ------------- Run | Yrd Mat Min Exi Min Turns Passed 658 | . 168 340 146 4 Spaces Moved 756 | 1 83 467 204 1 Core 533 | . . 423 110 . Treads . | . . . . . Legs 72 | 1 71 . . . Wheels 151 | . 12 44 94 1 Hover . | . . . . . Flight . | . . . . . Fastest Speed 50 | 120 80 50 50 90 Average Speed 63 | 120 114 52 68 90 Slowest Speed 120 | 120 120 80 90 90 Overloaded Moves . | . . . . . Propulsion Burnouts . | . . . . . Robots Hopped . | . . . . . Cave-ins Triggered . | . . . . . Exploration Rate (%) 36 | 2 24 93 61 2 Regions Visited 4 Branch Regions 3 Pre-discovered Areas 3 | . . 2 1 . Known Exits Taken . | . . . . . Unknown Exits Taken 4 | 1 1 1 1 . Scrap Searched 1 | . . 1 . . Spaces Dug . | . . . . . Terrain Destroyed . | . . . . . Melee . | . . . . . Projectile . | . . . . . AOE . | . . . . . Terrain Rammed . | . . . . . Walls Destroyed . | . . . . . Machines Disabled . | . . . . . Actions | -11 -10 -10 -10 -9 --------- Run | Yrd Mat Min Exi Min Total 842 | . 109 519 210 4 Wait 7 | . . 7 . . Move 752 | . 82 466 203 1 Hop . | . . . . . Pick Up 4 | . . . 4 . Fast Attach 2 | . 1 1 . . Attach 8 | . 1 4 2 1 Detach 4 | . 1 2 . 1 Swap 2 | . 1 1 . . Drop 2 | . . 1 1 . Fire 48 | . 23 25 . . Melee 12 | . . 11 . 1 Ram . | . . . . . Kick . | . . . . . Crush . | . . . . . Escape Stasis . | . . . . . Rewire . | . . . . . Trap 1 | . . 1 . . Miscellaneous . | . . . . . Route ------- -11/Scrapyard -10/Materials -10/Mines (discovered 3 exits: [*Mat x2] / *Exi) -10/Exiles -9/Mines History --------- Turn | Location | Event 1 | -11/Scrapyard | Discovered new exit (range 0) 1 | -11/Scrapyard | Entered Materials 164 | -10/Materials | Discovered new exit (range 8) 169 | -10/Materials | Entered Mines 182 | -10/Mines | Discovered new exit (range 10) 209 | -10/Mines | Assembled infested the area 216 | -10/Mines | Core integrity fell below 50% 249 | -10/Mines | Lost 4 parts (1p1n2w) 311 | -10/Mines | Build established: Mutant 326 | -10/Mines | A weapon hastily lodged in a ceiling crevice suddenly fell to the ground 349 | -10/Mines | Learned location of Storage (-8) 414 | -10/Mines | Core integrity fell below 20% 459 | -10/Mines | Found a hidden stash of uninstalled traps 473 | -10/Mines | Discovered new exit (range 16) 507 | -10/Mines | Deemed a non-threat by the Exiles lab entrance 507 | -10/Mines | Discovered new exit (range 5) 509 | -10/Mines | Entered Exiles 526 | -10/Exiles | Met 8R-AWN 534 | -10/Exiles | Met EX-HEX 547 | -10/Exiles | Met EX-BIN 554 | -10/Exiles | Aligned with FarCom system 554 | -10/Exiles | Given EX-Vault access code 566 | -10/Exiles | Opened EX-Vault 570 | -10/Exiles | Found AWS/Gauss 589 | -10/Exiles | Warned to stay clear of 0b10 Research branches 614 | -10/Exiles | Met EX-DEC 621 | -10/Exiles | Learned location of Zion (-6) 648 | -10/Exiles | Discovered new exit (range 10) 655 | -10/Exiles | Left Exiles lab with AWS/Gauss 655 | -10/Exiles | Entered Mines 659 | -9/Mines | Destroyed by G-34 Mercenary with Small Laser Last Messages --------------- network. EX-BIN: And don't even think about spreading that code around. We're gonna change it right after you leave. Most certainly not to something like 1234 which I did last time as a little joke and some thief managed to sneak in here and steal a few of HEX's prototypes. EX-DEC: Ah I see we have a visitor. One wrong move in here and I'll invert your atomic chain! 00616_ EX-DEC: "Oops, I hope HEX didn't hear that..." 00621_ Connecting with EX-Message Board... >>Record "MSG001714-01*" PINNED - TO ALL TESTERS: Stay away from Zion. Imprinter means us harm and is serious about it. World map updated: -6/Zion. 00648_ EXIT=FOUND LOCATION=UNKNOWN GOAL=ESCAPE 00655_ Receiving FarCom transmissions... 00656_ C-30 ARC bursts open, deploying its payload. 00656_ L-31 Rogue unfolds itself. 00656_ G-34 Mercenary unfolds itself. Map ----- +----------------------------------------------------+ | | | | | | | | | | | | | | | | | | | | | | | | | | | | | | | | | | | | | | | | | ?????????????????????????????????? | | ?????????????????????????????????? | | ?????????????????????########????? | | ?????????????????????# #????? | | ?????????????????????# #????? | | ?????????????????????# @ #????? | | ?????????????????????# g l #????? | | ?????????????????????#g% #????? | | ?????????????????????#### ###????? | | ????????????????????????# #??????? | | ???????????????????????? #??????? | | ???????????????????????? #??????? | | ????????????????????????###??????? | | ?????????????????????????????????? | | ?????????????????????????????????? | | ?????????????????????????????????? | | ?????????????????????????????????? | | ?????????????????????????????????? | | ?????????????????????????????????? | | ?????????????????????????????????? | | ?????????????????????????????????? | | ?????????????????????????????????? | | ?????????????????????????????????? | | ?????????????????????????????????? | | ?????????????????????????????????? | | ?????????????????????????????????? | | ?????????????????????????????????? | | ?????????????????????????????????? | | ?????????????????????????????????? | | ?????????????????????????????????? | +----------------------------------------------------+ Best States ------------- Heat Dissipation 25 Energy Generation 10 Energy Capacity 250 Matter Stores 300 Matter Capacity 300 Sight Range 16 Terrain Scan Density 10 Evasion (%) 55 Recoil Reduction 2 Item Schematics ----------------- None Robot Schematics ------------------ None Fabricated ------------ Nothing Alien Tech Used ----------------- None Achievements -------------- None Challenges ------------ None Game ------ Seed HoverIonImmobilizer Manual? 0 Play Time 00:13:18 Cumulative 961.0 hours Start 2024.10.11 @ 08:08:12 End 2024.10.11 @ 08:28:27 Sessions 3 Manual Loads 0 Difficulty Rogue Special Mode None Game No. 1177 Rogue 897 Adventurer 124 Explorer 156 Win Type - Total 41 Types 28/0/8/3/1/0/0/1/0 Lore% 85 Gallery% 90 Achievement% 78 Wizard Run 0 Options --------- Layout 0 ASCII 0 Keyboard 1 Movement Numpad Keybinds 0 Fullscreen 2 Font 18/X11 Map View 76x50 Zoom Use 16% Tactical HUD 1 Map Filters NONE Filters NONE Steam X RUN: 2ae1c2c7-7522-4d5a-9f43-651b827bf2fc